fUSD/lending_fUSD_20241220
["ID","MTS","AMOUNT","RATE_DAILY","PERIOD"]
[346136208,1734735051905,-500.0,0.00023287,4]
[346136209,1734735051915,-500.0,0.00023287,4]
[346136210,1734735051924,-500.0,0.00023287,4]
[346136211,1734735051933,-451.95256193,0.00023287,4]
[346136212,1734735051943,-500.0,0.00023287,4]
[346136213,1734735051952,-500.0,0.00023287,4]
[346136214,1734735051961,-500.0,0.00023287,4]
[346136215,1734735051971,-487.77,0.00023287,4]
[346136216,1734735051980,-500.0,0.00023287,4]
[346136217,1734735051990,-500.0,0.00023287,4]
[346136218,1734735051999,-2730.34,0.00023287,4]
[346136219,1734735052008,-1949.86,0.00023287,4]
[346136220,1734735052018,-256.63,0.00023287,4]
[346136221,1734735052027,-500.0,0.00023287,4]
[346136222,1734735052036,-713.63,0.00023287,4]
[346136223,1734735052045,-500.0,0.00023287,4]
[346136224,1734735052055,-1396.21,0.00023287,4]
[346136225,1734735052064,-500.0,0.00023287,4]
[346136226,1734735052074,-500.0,0.00023287,4]
[346136227,1734735052084,-500.0,0.00023287,4]
[346136228,1734735052094,-500.0,0.00023287,4]
[346136229,1734735052105,-500.0,0.00023287,4]
[346136230,1734735052118,-500.0,0.00023287,4]
[346136231,1734735052128,-500.0,0.00023287,4]
[346136232,1734735052137,-500.0,0.00023287,4]
[346136233,1734735052146,-500.0,0.00023287,4]
[346136234,1734735052157,-549.35,0.00023287,4]
[346136235,1734735052167,-500.0,0.00023287,4]
[346136236,1734735052176,-500.0,0.00023287,4]
[346136237,1734735052186,-500.0,0.00023287,4]
[346136238,1734735052196,-500.0,0.00023287,4]
[346136239,1734735052206,-500.0,0.00023287,4]
[346136240,1734735052216,-800.52,0.00023287,4]
[346136241,1734735052226,-500.0,0.00023287,4]
[346136242,1734735052235,-521.3,0.00023287,4]
[346136243,1734735052245,-2014.11,0.00023287,4]
[346136244,1734735052255,-708.9,0.00023287,4]
[346136245,1734735052264,-924.46,0.00023287,4]
[346136246,1734735052273,-560.49,0.00023287,4]
[346136247,1734735052283,-444.68,0.00023287,4]
[346136248,1734735052293,-500.0,0.00023287,4]
[346136249,1734735052302,-500.0,0.00023287,4]
[346136250,1734735052311,-572.36,0.00023287,4]
[346136251,1734735052321,-500.0,0.00023287,4]
[346136252,1734735052330,-500.0,0.00023287,4]
[346136253,1734735052340,-1160.66,0.00023287,4]
[346136254,1734735052350,-500.0,0.00023287,4]
[346136255,1734735052360,-500.0,0.00023287,4]
[346136256,1734735052370,-500.0,0.00023287,4]
[346136257,1734735052381,-500.0,0.00023287,4]
[346136258,1734735052391,-937.52,0.00023287,4]
[346136259,1734735052400,-1081.48,0.00023287,4]
[346136260,1734735052411,-500.0,0.00023287,4]
[346136261,1734735052421,-500.0,0.00023287,4]
[346136262,1734735052430,-500.0,0.00023287,4]
[346136263,1734735052440,-500.0,0.00023287,4]
[346136264,1734735052450,-500.0,0.00023287,4]
[346136265,1734735052459,-1099.48,0.00023287,4]
[346136266,1734735052469,-525.83,0.00023287,4]
[346136267,1734735052478,-4164.26,0.00023287,4]
[346136268,1734735052487,-500.0,0.00023287,4]
[346136269,1734735052496,-500.0,0.00023287,4]
[346136270,1734735052504,-500.0,0.00023287,4]
[346136271,1734735052513,-500.0,0.00023287,4]
[346136272,1734735052522,-500.0,0.00023287,4]
[346136273,1734735052531,-500.0,0.00023287,4]
[346136274,1734735052540,-500.0,0.00023287,4]
[346136275,1734735052550,-221.79,0.00023287,4]
[346136276,1734735052559,-500.0,0.00023287,4]
[346136277,1734735052568,-500.0,0.00023287,4]
[346136278,1734735052579,-500.0,0.00023287,4]
[346136279,1734735052589,-554.61,0.00023287,4]
[346136280,1734735052600,-500.0,0.00023287,4]
[346136281,1734735052610,-500.0,0.00023287,4]
[346136282,1734735052619,-500.0,0.00023287,4]
[346136283,1734735052628,-387.19,0.00023287,4]
[346136284,1734735052637,-515.51,0.00023287,4]
[346136285,1734735052648,-500.0,0.00023287,4]
[346136286,1734735052657,-500.0,0.00023287,4]
[346136287,1734735052666,-231.51343817,0.00023287,4]
[346136288,1734735052676,-500.0,0.00023287,4]
[346136289,1734735052685,-500.0,0.00023287,4]
[346136290,1734735052695,-500.0,0.00023287,4]
[346136291,1734735052704,-500.0,0.00023287,4]
[346136292,1734735052714,-592.04,0.00023287,4]
[346136293,1734735052725,-2256.0,0.000233,4]
[346136294,1734735052735,-153.0,0.00023309,2]
[346136295,1734735052744,-153.0,0.00023309,2]
[346136296,1734735052753,-411.74084034,0.00023314,2]
[346136297,1734735052763,-155313.57282091,0.00023361,2]
[346136298,1734735052773,-222.122108,0.00023398,2]
[346136299,1734735052783,-222.122108,0.00023398,3]
[346136300,1734735052792,-222.122108,0.00023398,4]
[346136301,1734735052801,-222.122108,0.00023398,5]
[346136302,1734735052810,-222.122108,0.00023398,6]
[346136303,1734735052819,-985.31153596,0.00023437,2]
[346136304,1734735052829,-761.5,0.00023446,2]
[346136305,1734735052838,-184.67,0.0002349,2]
[346136306,1734735052847,-222.122108,0.00023498,2]
[346136307,1734735052857,-222.122108,0.00023498,3]
[346136308,1734735052866,-222.122108,0.00023498,4]
[346136309,1734735052875,-222.122108,0.00023498,5]
[346136310,1734735052885,-222.122108,0.00023498,6]
[346136311,1734735052894,-222.122108,0.00023498,9]
[346136312,1734735052904,-222.122108,0.00023498,10]
[346136313,1734735052913,-222.122108,0.00023498,11]
[346136314,1734735052922,-222.122108,0.00023498,12]
[346136315,1734735052931,-222.122108,0.00023498,13]
[346136316,1734735052940,-2110.0,0.000235,2]
[346136317,1734735052950,-330.7485722,0.0002352,2]
[346136318,1734735052960,-211.0,0.0002352,2]
[346136319,1734735052970,-4593.85975611,0.00023546,2]
[346136320,1734735052979,-4593.85975609,0.00023546,2]
[346136321,1734735052988,-213.0,0.0002356,2]
[346136322,1734735052997,-365.08,0.00023561,4]
[346136323,1734735053006,-496.26,0.00023561,4]
[346136324,1734735053016,-454.51,0.00023561,4]
[346136325,1734735053025,-500.0,0.00023561,4]
[346136326,1734735053034,-500.0,0.00023561,4]
[346136327,1734735053044,-500.0,0.00023561,4]
[346136328,1734735053053,-500.0,0.00023561,4]
[346136329,1734735053062,-308.09,0.00023561,4]
[346136330,1734735053071,-500.0,0.00023561,4]
[346136331,1734735053081,-198.16,0.00023561,4]
[346136332,1734735053090,-519.89,0.00023561,4]
[346136333,1734735053099,-500.0,0.00023561,4]
[346136334,1734735053109,-627.4,0.00023561,4]
[346136335,1734735053121,-460.71,0.00023561,4]
[346136336,1734735053130,-500.0,0.00023561,4]
[346136337,1734735053139,-500.0,0.00023561,4]
[346136338,1734735053149,-500.0,0.00023561,4]
[346136339,1734735053159,-500.0,0.00023561,4]
[346136340,1734735053169,-412.17681213,0.00023561,4]
[346136341,1734735053178,-323.48,0.00023561,4]
[346136342,1734735053189,-514.28,0.00023561,4]
[346136343,1734735053199,-500.0,0.00023561,4]
[346136344,1734735053208,-427.0,0.00023561,4]
[346136345,1734735053217,-500.0,0.00023561,4]
[346136346,1734735053226,-400.43,0.00023561,4]
[346136347,1734735053235,-500.0,0.00023561,4]
[346136348,1734735053244,-221.22,0.00023561,4]
[346136349,1734735053253,-169.58,0.00023561,4]
[346136350,1734735053262,-500.0,0.00023561,4]
[346136351,1734735053271,-500.0,0.00023561,4]
[346136352,1734735053279,-500.0,0.00023561,4]
[346136353,1734735053289,-500.0,0.00023561,2]
[346136354,1734735053299,-500.0,0.00023561,4]
[346136355,1734735053308,-478.82010748,0.00023561,5]
[346136356,1734735053317,-500.0,0.00023561,4]
[346136357,1734735053327,-349.97,0.00023561,4]
[346136358,1734735053335,-500.0,0.00023561,4]
[346136359,1734735053345,-500.0,0.00023561,4]
[346136360,1734735053354,-401.87,0.00023561,4]
[346136361,1734735053363,-500.0,0.00023561,4]
[346136362,1734735053373,-500.0,0.00023561,4]
[346136363,1734735053381,-500.0,0.00023561,2]
[346136364,1734735053391,-500.0,0.00023561,4]
[346136365,1734735053400,-500.0,0.00023561,4]
[346136366,1734735053503,-907.7,0.00023561,4]
[346136367,1734735053522,-500.0,0.00023561,4]
[346136368,1734735053532,-500.0,0.00023561,4]
[346136369,1734735053541,-693.32,0.00023561,4]
[346136370,1734735053551,-766.64,0.00023561,4]
[346136371,1734735053560,-500.0,0.00023561,4]
[346136372,1734735053570,-627.03,0.00023561,4]
[346136373,1734735053579,-919.56,0.00023561,4]
[346136374,1734735053589,-2122.7,0.00023561,4]
[346136375,1734735053598,-500.0,0.00023561,4]
[346136376,1734735053607,-500.0,0.00023561,4]
[346136377,1734735053617,-500.0,0.00023561,4]
[346136378,1734735053626,-500.0,0.00023561,4]
[346136379,1734735053635,-261.1,0.00023561,4]
[346136380,1734735053644,-608.19,0.00023561,4]
[346136381,1734735053654,-500.0,0.00023561,4]
[346136382,1734735053663,-500.0,0.00023561,4]
[346136383,1734735053672,-500.0,0.00023561,4]
[346136384,1734735053681,-500.0,0.00023561,4]
[346136385,1734735053690,-500.0,0.00023561,4]
[346136386,1734735053700,-431.13,0.00023561,4]
[346136387,1734735053709,-500.0,0.00023561,4]
[346136388,1734735053719,-524.42,0.00023561,4]
[346136389,1734735053728,-1979.61,0.00023561,4]
[346136390,1734735053738,-500.0,0.00023561,4]
[346136391,1734735053747,-500.0,0.00023561,4]
[346136392,1734735053757,-500.0,0.00023561,4]
[346136393,1734735053766,-500.0,0.00023561,4]
[346136394,1734735053775,-500.0,0.00023561,4]
[346136395,1734735053785,-565.88,0.00023561,4]
[346136396,1734735053794,-500.0,0.00023561,4]
[346136397,1734735053804,-500.0,0.00023561,4]
[346136398,1734735053813,-500.0,0.00023561,4]
[346136399,1734735053822,-227.43,0.00023561,4]
[346136400,1734735053831,-2730.34,0.00023561,4]
[346136401,1734735053841,-1949.86,0.00023561,4]
[346136402,1734735053851,-500.0,0.00023561,4]
[346136403,1734735053860,-713.63,0.00023561,4]
[346136404,1734735053870,-243.88,0.00023561,4]
[346136405,1734735053879,-1396.21,0.00023561,4]
[346136406,1734735053889,-500.0,0.00023561,4]
[346136407,1734735053899,-500.0,0.00023561,4]
[346136408,1734735053909,-462.92254775,0.00023561,4]
[346136409,1734735053918,-500.0,0.00023561,4]
[346136410,1734735053927,-181.89,0.00023561,4]
[346136411,1734735053936,-500.0,0.00023561,4]
[346136412,1734735053946,-500.0,0.00023561,4]
[346136413,1734735053957,-500.0,0.00023561,4]
[346136414,1734735053966,-500.0,0.00023561,4]
[346136415,1734735053975,-500.0,0.00023561,4]
[346136416,1734735053985,-500.0,0.00023561,4]
[346136417,1734735053995,-500.0,0.00023561,4]
[346136418,1734735054004,-500.0,0.00023561,4]
[346136419,1734735054013,-500.0,0.00023561,4]
[346136420,1734735054023,-800.52,0.00023561,4]
[346136421,1734735054033,-500.0,0.00023561,4]
[346136422,1734735054043,-2014.11,0.00023561,4]
[346136423,1734735054052,-708.9,0.00023561,4]
[346136424,1734735054062,-924.46,0.00023561,4]
[346136425,1734735054071,-562.24,0.00023561,4]
[346136426,1734735054081,-500.0,0.00023561,4]
[346136427,1734735054090,-572.36,0.00023561,4]
[346136428,1734735054308,-500.0,0.00023561,4]
[346136429,1734735054319,-500.0,0.00023561,4]
[346136430,1734735054329,-1160.66,0.00023561,4]
[346136431,1734735054338,-500.0,0.00023561,4]
[346136432,1734735054348,-598.76,0.00023561,4]
[346136433,1734735054357,-500.0,0.00023561,4]
[346136434,1734735054367,-500.0,0.00023561,4]
[346136435,1734735054377,-937.52,0.00023561,4]
[346136436,1734735054386,-1081.48,0.00023561,4]
[346136437,1734735054395,-500.0,0.00023561,4]
[346136438,1734735054405,-500.0,0.00023561,4]
[346136439,1734735054414,-500.0,0.00023561,4]
[346136440,1734735054423,-500.0,0.00023561,4]
[346136441,1734735054433,-500.0,0.00023561,4]
[346136442,1734735054442,-1099.48,0.00023561,4]
[346136443,1734735054452,-4164.26,0.00023561,4]
[346136444,1734735054461,-500.0,0.00023561,4]
[346136445,1734735054470,-500.0,0.00023561,4]
[346136446,1734735054480,-500.0,0.00023561,4]
[346136447,1734735054489,-244.27,0.00023561,4]
[346136448,1734735054499,-500.0,0.00023561,4]
[346136449,1734735054508,-500.0,0.00023561,4]
[346136450,1734735054517,-500.0,0.00023561,4]
[346136451,1734735054527,-500.0,0.00023561,4]
[346136452,1734735054536,-500.0,0.00023561,4]
[346136453,1734735054546,-554.61,0.00023561,4]
[346136454,1734735054555,-597.48,0.00023561,4]
[346136455,1734735054565,-500.0,0.00023561,4]
[346136456,1734735054575,-500.0,0.00023561,4]
[346136457,1734735054584,-500.0,0.00023561,4]
[346136458,1734735054594,-500.0,0.00023561,4]
[346136459,1734735054603,-500.0,0.00023561,4]
[346136460,1734735054612,-500.0,0.00023561,4]
[346136461,1734735054624,-500.0,0.00023561,4]
[346136462,1734735054633,-500.0,0.00023561,4]
[346136463,1734735054643,-422.63,0.00023561,4]
[346136464,1734735054658,-222.122108,0.00023598,2]
[346136465,1734735054678,-222.122108,0.00023598,3]
[346136466,1734735054691,-222.122108,0.00023598,4]
[346136467,1734735054707,-222.122108,0.00023598,5]
[346136468,1734735054724,-222.122108,0.00023598,6]
[346136469,1734735054744,-222.122108,0.00023598,9]
[346136470,1734735054758,-222.122108,0.00023598,10]
[346136471,1734735054771,-222.122108,0.00023598,11]
[346136472,1734735054787,-222.122108,0.00023598,12]
[346136473,1734735054802,-222.122108,0.00023598,13]
[346136474,1734735054818,-411.74084034,0.00023665,2]
[346136475,1734735054834,-985.31153596,0.00023669,2]
[346136476,1734735054851,-222.122108,0.00023698,2]
[346136477,1734735054865,-222.122108,0.00023698,3]
[346136478,1734735054879,-222.122108,0.00023698,4]
[346136479,1734735054896,-222.122108,0.00023698,5]
[346136480,1734735054910,-222.122108,0.00023698,6]
[346136481,1734735054923,-222.122108,0.00023698,9]
[346136482,1734735054934,-222.122108,0.00023698,10]
[346136483,1734735054952,-222.122108,0.00023698,11]
[346136484,1734735054963,-222.122108,0.00023698,12]
[346136485,1734735054976,-222.122108,0.00023698,13]
[346136486,1734735054992,-500.0,0.0002372,2]
[346136487,1734735055004,-4593.85975609,0.00023728,2]
[346136488,1734735055015,-150.0,0.00023737,2]
[346136489,1734735055029,-150.0,0.00023739,2]
[346136490,1734735055042,-150.0,0.00023745,2]
[346136491,1734735055054,-300.0,0.00023745,2]
[346136492,1734735055067,-1500.0,0.00023748,2]
[346136493,1734735055080,-150.0,0.00023751,2]
[346136494,1734735055093,-150.0,0.00023754,2]
[346136495,1734735055106,-150.0,0.00023761,2]
[346136496,1734735055122,-150.0,0.00023761,2]
[346136497,1734735055135,-150.0,0.00023762,2]
[346136498,1734735055147,-150.0,0.00023762,2]
[346136499,1734735055161,-150.0,0.00023762,2]
[346136500,1734735055173,-1500.0,0.00023765,2]
[346136501,1734735055186,-150.0,0.00023765,2]
[346136502,1734735055200,-150.0,0.00023768,2]
[346136503,1734735055212,-150.0,0.00023777,2]
[346136504,1734735055224,-220.0,0.0002378,2]
[346136505,1734735055237,-150.0,0.0002378,2]
[346136506,1734735055249,-1500.0,0.00023785,2]
[346136507,1734735055261,-1500.0,0.00023788,2]
[346136508,1734735055274,-150.0,0.00023789,2]
[346136509,1734735055287,-150.0,0.0002379,2]
[346136510,1734735055302,-222.122108,0.00023798,2]
[346136511,1734735055315,-222.122108,0.00023798,3]
[346136512,1734735055327,-222.122108,0.00023798,4]
[346136513,1734735055340,-222.122108,0.00023798,5]
[346136514,1734735055353,-222.122108,0.00023798,6]
[346136515,1734735055365,-222.122108,0.00023798,9]
[346136516,1734735055378,-222.122108,0.00023798,10]
[346136517,1734735055391,-222.122108,0.00023798,11]
[346136518,1734735055403,-222.122108,0.00023798,12]
[346136519,1734735055415,-222.122108,0.00023798,13]
[346136520,1734735055428,-1500.0,0.00023808,2]
[346136521,1734735055440,-500.0,0.00023808,2]
[346136522,1734735055453,-300.0,0.00023814,2]
[346136523,1734735055466,-150.0,0.0002382,2]
[346136524,1734735055478,-150.0,0.00023826,2]
[346136525,1734735055490,-500.0,0.00023829,120]
[346136526,1734735055503,-2000.0,0.00023829,120]
[346136527,1734735055516,-294.783335,0.00023829,120]
[346136528,1734735055529,-150.0,0.00023829,2]
[346136529,1734735055541,-153.949164,0.00023835,4]
[346136530,1734735055554,-211.89,0.00023835,4]
[346136531,1734735055567,-460.2,0.00023835,4]
[346136532,1734735055580,-500.0,0.00023835,4]
[346136533,1734735055593,-164.14,0.00023835,4]
[346136534,1734735055607,-370.59,0.00023835,4]
[346136535,1734735055620,-500.0,0.00023835,4]
[346136536,1734735055634,-500.0,0.00023835,4]
[346136537,1734735055648,-453.16,0.00023835,4]
[346136538,1734735055658,-500.0,0.00023835,4]
[346136539,1734735055667,-500.0,0.00023835,4]
[346136540,1734735055678,-500.0,0.00023835,4]
[346136541,1734735055688,-429.92389225,0.00023835,4]
[346136542,1734735055698,-500.0,0.00023835,4]
[346136543,1734735055707,-500.0,0.00023835,4]
[346136544,1734735055717,-173.93578355,0.00023835,4]
[346136545,1734735055726,-415.34,0.00023835,4]
[346136546,1734735055735,-500.0,0.00023835,2]
[346136547,1734735055746,-500.0,0.00023835,4]
[346136548,1734735055756,-500.0,0.00023835,4]
[346136549,1734735055765,-480.15,0.00023835,4]
[346136550,1734735055775,-500.0,0.00023835,4]
[346136551,1734735055784,-500.0,0.00023835,4]
[346136552,1734735055793,-500.0,0.00023835,4]
[346136553,1734735055803,-500.0,0.00023835,2]
[346136554,1734735055813,-500.0,0.00023835,4]
[346136555,1734735055822,-500.0,0.00023835,4]
[346136556,1734735055831,-907.7,0.00023835,4]
[346136557,1734735055841,-500.0,0.00023835,4]
[346136558,1734735055851,-500.0,0.00023835,4]
[346136559,1734735055861,-693.32,0.00023835,4]
[346136560,1734735056120,-766.64,0.00023835,4]
[346136561,1734735056133,-500.0,0.00023835,4]
[346136562,1734735056143,-919.56,0.00023835,4]
[346136563,1734735056153,-2122.7,0.00023835,4]
[346136564,1734735056163,-500.0,0.00023835,4]
[346136565,1734735056172,-500.0,0.00023835,4]
[346136566,1734735056181,-618.90215986,0.00023835,4]
[346136567,1734735056192,-500.0,0.00023835,4]
[346136568,1734735056202,-500.0,0.00023835,4]
[346136569,1734735056211,-500.0,0.00023835,4]
[346136570,1734735056220,-253.48,0.00023835,4]
[346136571,1734735056228,-500.0,0.00023835,4]
[346136572,1734735056238,-500.0,0.00023835,4]
[346136573,1734735056247,-628.93328464,0.00023835,4]
[346136574,1734735056257,-1979.61,0.00023835,4]
[346136575,1734735056266,-500.0,0.00023835,4]
[346136576,1734735056276,-500.0,0.00023835,4]
[346136577,1734735056286,-500.0,0.00023835,4]
[346136578,1734735056296,-500.0,0.00023835,4]
[346136579,1734735056307,-500.0,0.00023835,4]
[346136580,1734735056316,-500.0,0.00023835,4]
[346136581,1734735056326,-500.0,0.00023835,4]
[346136582,1734735056335,-500.0,0.00023835,4]
[346136583,1734735056344,-2730.34,0.00023835,4]
[346136584,1734735056355,-1949.86,0.00023835,4]
[346136585,1734735056365,-500.0,0.00023835,4]
[346136586,1734735056375,-713.63,0.00023835,4]
[346136587,1734735056384,-1396.21,0.00023835,4]
[346136588,1734735056394,-500.0,0.00023835,4]
[346136589,1734735056404,-500.0,0.00023835,4]
[346136590,1734735056414,-500.0,0.00023835,4]
[346136591,1734735056423,-500.0,0.00023835,4]
[346136592,1734735056433,-500.0,0.00023835,4]
[346136593,1734735056442,-155.79,0.00023835,4]
[346136594,1734735056452,-500.0,0.00023835,4]
[346136595,1734735056461,-500.0,0.00023835,4]
[346136596,1734735056470,-500.0,0.00023835,4]
[346136597,1734735056480,-500.0,0.00023835,4]
[346136598,1734735056490,-500.0,0.00023835,4]
[346136599,1734735056499,-500.0,0.00023835,4]
[346136600,1734735056509,-800.52,0.00023835,4]
[346136601,1734735056518,-500.0,0.00023835,4]
[346136602,1734735056527,-2014.11,0.00023835,4]
[346136603,1734735056537,-708.9,0.00023835,4]
[346136604,1734735056546,-924.46,0.00023835,4]
[346136605,1734735056555,-500.0,0.00023835,4]
[346136606,1734735056565,-572.36,0.00023835,4]
[346136607,1734735056574,-500.0,0.00023835,4]
[346136608,1734735056583,-212.92,0.00023835,4]
[346136609,1734735056593,-1160.66,0.00023835,4]
[346136610,1734735056602,-278.6,0.00023835,4]
[346136611,1734735056611,-500.0,0.00023835,4]
[346136612,1734735056621,-500.0,0.00023835,4]
[346136613,1734735056630,-937.52,0.00023835,4]
[346136614,1734735056640,-1081.48,0.00023835,4]
[346136615,1734735056649,-500.0,0.00023835,4]
[346136616,1734735056659,-500.0,0.00023835,4]
[346136617,1734735056668,-500.0,0.00023835,4]
[346136618,1734735056678,-500.0,0.00023835,4]
[346136619,1734735056687,-179.22,0.00023835,4]
[346136620,1734735056697,-1099.48,0.00023835,4]
[346136621,1734735056706,-4164.26,0.00023835,4]
[346136622,1734735056715,-500.0,0.00023835,4]
[346136623,1734735056725,-500.0,0.00023835,4]
[346136624,1734735056734,-500.0,0.00023835,4]
[346136625,1734735056744,-500.0,0.00023835,4]
[346136626,1734735056754,-565.86,0.00023835,4]
[346136627,1734735056763,-500.0,0.00023835,4]
[346136628,1734735056772,-500.0,0.00023835,4]
[346136629,1734735056782,-500.0,0.00023835,4]
[346136630,1734735056792,-554.61,0.00023835,4]
[346136631,1734735056801,-194.64,0.00023835,4]
[346136632,1734735056811,-500.0,0.00023835,4]
[346136633,1734735056822,-501.18,0.00023835,4]
[346136634,1734735056832,-500.0,0.00023835,4]
[346136635,1734735056842,-500.0,0.00023835,4]
[346136636,1734735056852,-500.0,0.00023835,4]
[346136637,1734735056862,-500.0,0.00023835,4]
[346136638,1734735056871,-500.0,0.00023835,4]
[346136639,1734735056881,-150.0,0.00023846,2]
[346136640,1734735056890,-150.0,0.00023852,2]
[346136641,1734735056900,-150.0,0.00023852,2]
[346136642,1734735056910,-188.0,0.00023857,2]
[346136643,1734735056919,-214.0,0.00023857,2]
[346136644,1734735056929,-300.0,0.00023861,2]
[346136645,1734735056939,-999.0,0.00023863,7]
[346136646,1734735056949,-999.0,0.00023863,7]
[346136647,1734735056958,-999.0,0.00023863,7]
[346136648,1734735056968,-999.0,0.00023863,7]
[346136649,1734735056978,-999.0,0.00023863,7]
[346136650,1734735056987,-999.0,0.00023863,7]
[346136651,1734735056997,-999.0,0.00023863,7]
[346136652,1734735057006,-999.0,0.00023863,7]
[346136653,1734735057016,-999.0,0.00023863,7]
[346136654,1734735057025,-999.0,0.00023863,7]
[346136655,1734735057035,-999.0,0.00023863,7]
[346136656,1734735057044,-999.0,0.00023863,7]
[346136657,1734735057053,-999.0,0.00023863,7]
[346136658,1734735057063,-999.0,0.00023863,7]
[346136659,1734735057073,-999.0,0.00023863,7]
[346136660,1734735057082,-999.0,0.00023863,7]
[346136661,1734735057091,-999.0,0.00023863,7]
[346136662,1734735057101,-999.0,0.00023863,7]
[346136663,1734735057112,-999.0,0.00023863,7]
[346136664,1734735057123,-999.0,0.00023863,7]
[346136665,1734735057132,-999.0,0.00023863,7]
[346136666,1734735057142,-999.0,0.00023863,7]
[346136667,1734735057152,-392.81401097,0.00023863,7]
[346136668,1734735057162,-308.1979212,0.00023873,2]
[346136669,1734735057172,-300.0,0.00023875,2]
[346136670,1734735057182,-150.0,0.00023877,2]
[346136671,1734735057194,-150.0,0.00023881,2]
[346136672,1734735057203,-150.0,0.00023886,2]
[346136673,1734735057213,-150.0,0.00023886,2]
[346136674,1734735057223,-150.0,0.00023889,2]
[346136675,1734735057232,-150.0,0.00023897,2]
[346136676,1734735057241,-13426.10166863,0.00023898,14]
[346136677,1734735057250,-222.122108,0.00023898,2]
[346136678,1734735057260,-222.122108,0.00023898,3]
[346136679,1734735057270,-222.122108,0.00023898,4]
[346136680,1734735057279,-222.122108,0.00023898,5]
[346136681,1734735057289,-222.122108,0.00023898,6]
[346136682,1734735057298,-222.122108,0.00023898,9]
[346136683,1734735057308,-222.122108,0.00023898,10]
[346136684,1734735057318,-222.122108,0.00023898,11]
[346136685,1734735057328,-222.122108,0.00023898,12]
[346136686,1734735057338,-222.122108,0.00023898,13]
[346136687,1734735057347,-100845.80691886,0.000239,2]
[346136688,1734735057357,-26397.088507,0.000239,2]
[346136689,1734735057367,-30378.733,0.000239,2]
[346136690,1734735057377,-5800.0,0.000239,2]
[346136691,1734735057386,-152.69908363,0.000239,2]
[346136692,1734735057396,-3255.286268,0.000239,2]
[346136693,1734735057405,-985.31153596,0.000239,2]
[346136694,1734735057416,-151.51309141,0.000239,7]
[346136695,1734735057425,-151.51309141,0.000239,7]
[346136696,1734735057435,-151.51309141,0.000239,7]
[346136697,1734735057445,-151.51309141,0.000239,7]
[346136698,1734735057459,-151.51,0.000239,7]
[346136699,1734735057468,-162.33545509,0.000239,7]
[346136700,1734735057478,-162.33545509,0.000239,7]
[346136701,1734735057492,-162.33545509,0.000239,7]
[346136702,1734735057502,-162.33545509,0.000239,7]
[346136703,1734735057511,-162.33545509,0.000239,7]
[346136704,1734735057522,-162.33545509,0.000239,7]
[346136705,1734735057531,-162.33,0.000239,7]
[346136706,1734735057541,-343.14587832,0.000239,2]
[346136707,1734735057551,-5319.11670364,0.000239,2]